{"text_format":"1","workbook":"xlsx","n_sheets":4,"sheets":["提出用","提出用写","入力用","提出用控"],"not_rendered":{"charts":0,"images":2,"macros":1,"external_links":0,"defined_names":4,"comments":0,"pivot_tables":0},"unopened":[],"bounds":{"document_bytes":16777216,"sheet_cells":100000,"rows_first":2000,"rows_last":500,"rows_between":2000,"halvings":0,"cell_chars":16384,"cell_head_chars":4096},"cells_cut":0,"cells_raw":0,"read":"whole","date_system":"1900"}

{"sheet":"提出用","index":0,"n_rows":43,"n_cols":112,"rows_kept":43,"cut":false,"hidden":false,"merged":[[36,4,37,59],[18,1,18,59],[7,75,7,77],[26,71,26,119],[22,1,31,3],[10,114,11,119],[28,4,29,59],[30,4,31,59],[8,72,9,83],[8,84,9,119],[10,72,11,77],[10,78,11,83],[10,84,11,89],[10,90,11,95],[10,96,11,101],[10,102,11,107],[40,71,40,119],[28,71,28,119],[30,71,30,119],[32,71,32,119],[34,71,34,119],[36,71,36,119],[38,71,38,119],[42,1,42,3],[19,60,21,70],[22,60,23,70],[24,60,25,70],[26,60,27,70],[28,60,29,70],[30,60,31,70],[32,60,33,70],[34,60,35,70],[36,60,37,70],[38,60,39,70],[40,60,41,70],[40,1,41,59],[19,1,21,59],[38,4,39,59],[32,1,39,3],[10,108,11,113],[7,84,7,86],[5,102,6,105],[5,106,6,110],[7,87,7,89],[7,90,7,92],[7,93,7,95],[7,96,7,98],[7,99,7,101],[4,1,4,46],[9,1,10,69],[11,1,11,69],[5,1,8,69],[42,4,42,119],[34,4,35,5],[3,70,12,71],[14,60,16,61],[3,111,4,119],[3,72,4,101],[3,102,4,110],[5,72,6,101],[5,111,6,115],[5,116,6,119],[7,78,7,80],[7,81,7,83],[34,6,35,59],[14,63,16,66],[14,67,16,69],[14,42,16,59],[14,23,16,41],[18,60,18,119],[24,4,25,59],[22,4,23,59],[26,4,27,59],[20,71,20,119],[22,71,22,119],[24,71,24,119],[32,4,33,59]]}
[]
[]
[]
[null,null,null,null,null,null,null,null,null,null,null,null,null,null,null,null,null,null,null,null,null,null,null,null,null,null,null,null,null,null,null,null,null,null,null,null,null,null,null,null,null,null,null,null,null,null,null,null,null,null,null,null,null,null,null,null,null,null,null,null,null,null,null,null,null,null,null,null,null,null,"※処理事項",null,"事業者コード",null,null,null,null,null,null,null,null,null,null,null,null,null,null,null,null,null,null,null,null,null,null,null,null,null,null,null,null,null,"処理\n区分",null,null,null,null,null,null,null,null,"申告\n区分"]
[null,"　申告者の氏名又は名称"]
[]
[]
[]
[null,null,null,null,null,null,null,null,null,null,null,null,null,null,null,null,null,null,null,null,null,null,null,null,null,null,null,null,null,null,null,null,null,null,null,null,null,null,null,null,null,null,null,null,null,null,null,null,null,null,null,null,null,null,null,null,null,null,null,null,null,null,null,null,null,null,null,null,null,null,null,null,"予備",null,null,null,null,null,null,null,null,null,null,null,"申 告 年 月 日"]
[null,"　個人番号又は法人番号\n　　　　　　↓個人番号の記載に当たっては、左端を空欄とし、ここから記載してください。"]
[null,null,null,null,null,null,null,null,null,null,null,null,null,null,null,null,null,null,null,null,null,null,null,null,null,null,null,null,null,null,null,null,null,null,null,null,null,null,null,null,null,null,null,null,null,null,null,null,null,null,null,null,null,null,null,null,null,null,null,null,null,null,null,null,null,null,null,null,null,null,null,null,1,null,null,null,null,null,3]
[]
[]
[]
[null,null,null,null,null,null,null,null,null,null,null,null,null,null,null,null,null,null,null,null,null,null,null,"令和",null,null,null,null,null,null,null,null,null,null,null,null,null,null,null,null,null,null,null,null,null,null,null,null,null,null,null,null,null,null,null,null,null,null,null,null,"年",null,null,null,null,null,null,"月分"]
[]
[]
[]
[null,"摘要",null,null,null,null,null,null,null,null,null,null,null,null,null,null,null,null,null,null,null,null,null,null,null,null,null,null,null,null,null,null,null,null,null,null,null,null,null,null,null,null,null,null,null,null,null,null,null,null,null,null,null,null,null,null,null,null,null,null,"数量"]
[null,"前々月末在庫"]
[]
[]
[null,"受入れ",null,null,"輸入・製造"]
[]
[null,null,null,null,"卸売販売業者等からの買受け等"]
[]
[null,null,null,null,"返還",null,null,null,null,null,null,null,null,null,null,null,null,null,null,null,null,null,null,null,null,null,null,null,null,null,null,null,null,null,null,null,null,null,null,null,null,null,null,null,null,null,null,null,null,null,null,null,null,null,null,null,null,null,null,null,null,null,null,null,null,null,null,null,null,null,null,0]
[]
[null,null,null,null,"その他",null,null,null,null,null,null,null,null,null,null,null,null,null,null,null,null,null,null,null,null,null,null,null,null,null,null,null,null,null,null,null,null,null,null,null,null,null,null,null,null,null,null,null,null,null,null,null,null,null,null,null,null,null,null,null,null,null,null,null,null,null,null,null,null,null,null,0]
[]
[null,null,null,null,"合計",null,null,null,null,null,null,null,null,null,null,null,null,null,null,null,null,null,null,null,null,null,null,null,null,null,null,null,null,null,null,null,null,null,null,null,null,null,null,null,null,null,null,null,null,null,null,null,null,null,null,null,null,null,null,null,null,null,null,null,null,null,null,null,null,null,null,{"$f":"BT23+BT25+BT27+BT29","v":0}]
[]
[null,"払出し",null,null,"卸売販売業者等への売渡し等"]
[]
[null,null,null,null,null,null,"①のうち小売販売用",null,null,null,null,null,null,null,null,null,null,null,null,null,null,null,null,null,null,null,null,null,null,null,null,null,null,null,null,null,null,null,null,null,null,null,null,null,null,null,null,null,null,null,null,null,null,null,null,null,null,null,null,null,null,null,null,null,null,null,null,null,null,null,null,0]
[]
[null,null,null,null,"小売販売業者への売渡し、消費者\n等への売渡し及び消費等"]
[]
[null,null,null,null,"合計　（①＋③－②）",null,null,null,null,null,null,null,null,null,null,null,null,null,null,null,null,null,null,null,null,null,null,null,null,null,null,null,null,null,null,null,null,null,null,null,null,null,null,null,null,null,null,null,null,null,null,null,null,null,null,null,null,null,null,null,null,null,null,null,null,null,null,null,null,null,null,{"$f":"BT33+BT37-BT35","v":0}]
[]
[null,"前月末在庫",null,null,null,null,null,null,null,null,null,null,null,null,null,null,null,null,null,null,null,null,null,null,null,null,null,null,null,null,null,null,null,null,null,null,null,null,null,null,null,null,null,null,null,null,null,null,null,null,null,null,null,null,null,null,null,null,null,null,null,null,null,null,null,null,null,null,null,null,null,{"$f":"BT21+BT31-BT39","v":0}]
[]
[null,"備考"]

{"sheet":"提出用写","index":1,"n_rows":43,"n_cols":112,"rows_kept":43,"cut":false,"hidden":true,"merged":[[10,114,11,119],[36,60,37,70],[32,71,32,119],[34,71,34,119],[36,71,36,119],[24,71,24,119],[26,71,26,119],[28,71,28,119],[30,71,30,119],[30,60,31,70],[24,60,25,70],[26,60,27,70],[28,60,29,70],[10,72,11,77],[10,78,11,83],[10,84,11,89],[40,1,41,59],[42,1,42,3],[42,4,42,119],[38,71,38,119],[40,71,40,119],[32,1,39,3],[32,4,33,59],[36,4,37,59],[38,4,39,59],[34,4,35,5],[38,60,39,70],[40,60,41,70],[32,60,33,70],[34,60,35,70],[34,6,35,59],[10,90,11,95],[10,96,11,101],[5,102,6,105],[5,106,6,110],[7,96,7,98],[7,99,7,101],[10,102,11,107],[10,108,11,113],[3,70,12,71],[3,72,4,101],[7,75,7,77],[7,78,7,80],[7,81,7,83],[7,84,7,86],[7,87,7,89],[5,72,6,101],[8,72,9,83],[8,84,9,119],[7,90,7,92],[7,93,7,95],[3,111,4,119],[3,102,4,110],[5,111,6,115],[5,116,6,119],[4,1,4,46],[9,1,10,69],[11,1,11,69],[5,1,8,69],[24,4,25,59],[22,4,23,59],[19,1,21,59],[22,1,31,3],[30,4,31,59],[14,60,16,61],[18,1,18,59],[18,60,18,119],[19,60,21,70],[22,60,23,70],[20,71,20,119],[22,71,22,119],[28,4,29,59],[14,63,16,66],[14,67,16,69],[14,42,16,59],[14,23,16,41],[26,4,27,59]]}
[]
[]
[]
[null,null,null,null,null,null,null,null,null,null,null,null,null,null,null,null,null,null,null,null,null,null,null,null,null,null,null,null,null,null,null,null,null,null,null,null,null,null,null,null,null,null,null,null,null,null,null,null,null,null,null,null,null,null,null,null,null,null,null,null,null,null,null,null,null,null,null,null,null,null,"※処理事項",null,"事業者コード",null,null,null,null,null,null,null,null,null,null,null,null,null,null,null,null,null,null,null,null,null,null,null,null,null,null,null,null,null,"処理\n区分",null,null,null,null,null,null,null,null,"申告\n区分"]
[null,"　申告者の氏名又は名称"]
[null,{"$f":"IF(提出用!B6=\"\",\"\",提出用!B6)","v":""},null,null,null,null,null,null,null,null,null,null,null,null,null,null,null,null,null,null,null,null,null,null,null,null,null,null,null,null,null,null,null,null,null,null,null,null,null,null,null,null,null,null,null,null,null,null,null,null,null,null,null,null,null,null,null,null,null,null,null,null,null,null,null,null,null,null,null,null,null,null,{"$f":"IF(提出用!BU6=\"\",\"\",提出用!BU6)","v":""}]
[]
[]
[null,null,null,null,null,null,null,null,null,null,null,null,null,null,null,null,null,null,null,null,null,null,null,null,null,null,null,null,null,null,null,null,null,null,null,null,null,null,null,null,null,null,null,null,null,null,null,null,null,null,null,null,null,null,null,null,null,null,null,null,null,null,null,null,null,null,null,null,null,null,null,null,"予備",null,null,null,null,null,null,null,null,null,null,null,"申 告 年 月 日"]
[null,"　個人番号又は法人番号\n　　　　　　↓個人番号の記載に当たっては、左端を空欄とし、ここから記載してください。"]
[null,null,null,null,null,null,null,null,null,null,null,null,null,null,null,null,null,null,null,null,null,null,null,null,null,null,null,null,null,null,null,null,null,null,null,null,null,null,null,null,null,null,null,null,null,null,null,null,null,null,null,null,null,null,null,null,null,null,null,null,null,null,null,null,null,null,null,null,null,null,null,null,1,null,null,null,null,null,3]
[null,{"$f":"IF(提出用!B12=\"\",\"\",提出用!B12)","v":""}]
[]
[]
[null,null,null,null,null,null,null,null,null,null,null,null,null,null,null,null,null,null,null,null,null,null,null,"令和",null,null,null,null,null,null,null,null,null,null,null,null,null,null,null,null,null,null,{"$f":"IF(提出用!AQ15=\"\",\"\",提出用!AQ15)","v":""},null,null,null,null,null,null,null,null,null,null,null,null,null,null,null,null,null,"年",null,null,{"$f":"IF(提出用!BL15=\"\",\"\",提出用!BL15)","v":""},null,null,null,"月分"]
[]
[]
[]
[null,"摘要",null,null,null,null,null,null,null,null,null,null,null,null,null,null,null,null,null,null,null,null,null,null,null,null,null,null,null,null,null,null,null,null,null,null,null,null,null,null,null,null,null,null,null,null,null,null,null,null,null,null,null,null,null,null,null,null,null,null,"数量"]
[null,"前々月末在庫"]
[null,null,null,null,null,null,null,null,null,null,null,null,null,null,null,null,null,null,null,null,null,null,null,null,null,null,null,null,null,null,null,null,null,null,null,null,null,null,null,null,null,null,null,null,null,null,null,null,null,null,null,null,null,null,null,null,null,null,null,null,null,null,null,null,null,null,null,null,null,null,null,{"$f":"IF(提出用!BT21=\"\",\"\",提出用!BT21)","v":""}]
[]
[null,"受入れ",null,null,"輸入・製造",null,null,null,null,null,null,null,null,null,null,null,null,null,null,null,null,null,null,null,null,null,null,null,null,null,null,null,null,null,null,null,null,null,null,null,null,null,null,null,null,null,null,null,null,null,null,null,null,null,null,null,null,null,null,null,null,null,null,null,null,null,null,null,null,null,null,{"$f":"IF(提出用!BT23=\"\",\"\",提出用!BT23)","v":""}]
[]
[null,null,null,null,"卸売販売業者等からの買受け等",null,null,null,null,null,null,null,null,null,null,null,null,null,null,null,null,null,null,null,null,null,null,null,null,null,null,null,null,null,null,null,null,null,null,null,null,null,null,null,null,null,null,null,null,null,null,null,null,null,null,null,null,null,null,null,null,null,null,null,null,null,null,null,null,null,null,{"$f":"IF(提出用!BT25=\"\",\"\",提出用!BT25)","v":""}]
[]
[null,null,null,null,"返還",null,null,null,null,null,null,null,null,null,null,null,null,null,null,null,null,null,null,null,null,null,null,null,null,null,null,null,null,null,null,null,null,null,null,null,null,null,null,null,null,null,null,null,null,null,null,null,null,null,null,null,null,null,null,null,null,null,null,null,null,null,null,null,null,null,null,{"$f":"IF(提出用!BT27=\"\",\"\",提出用!BT27)","v":0}]
[]
[null,null,null,null,"その他",null,null,null,null,null,null,null,null,null,null,null,null,null,null,null,null,null,null,null,null,null,null,null,null,null,null,null,null,null,null,null,null,null,null,null,null,null,null,null,null,null,null,null,null,null,null,null,null,null,null,null,null,null,null,null,null,null,null,null,null,null,null,null,null,null,null,{"$f":"IF(提出用!BT29=\"\",\"\",提出用!BT29)","v":0}]
[]
[null,null,null,null,"合計",null,null,null,null,null,null,null,null,null,null,null,null,null,null,null,null,null,null,null,null,null,null,null,null,null,null,null,null,null,null,null,null,null,null,null,null,null,null,null,null,null,null,null,null,null,null,null,null,null,null,null,null,null,null,null,null,null,null,null,null,null,null,null,null,null,null,{"$f":"IF(提出用!BT31=\"\",\"\",提出用!BT31)","v":0}]
[]
[null,"払出し",null,null,"卸売販売業者等への売渡し等",null,null,null,null,null,null,null,null,null,null,null,null,null,null,null,null,null,null,null,null,null,null,null,null,null,null,null,null,null,null,null,null,null,null,null,null,null,null,null,null,null,null,null,null,null,null,null,null,null,null,null,null,null,null,null,null,null,null,null,null,null,null,null,null,null,null,{"$f":"IF(提出用!BT33=\"\",\"\",提出用!BT33)","v":""}]
[]
[null,null,null,null,null,null,"①のうち小売販売用",null,null,null,null,null,null,null,null,null,null,null,null,null,null,null,null,null,null,null,null,null,null,null,null,null,null,null,null,null,null,null,null,null,null,null,null,null,null,null,null,null,null,null,null,null,null,null,null,null,null,null,null,null,null,null,null,null,null,null,null,null,null,null,null,{"$f":"IF(提出用!BT35=\"\",\"\",提出用!BT35)","v":0}]
[]
[null,null,null,null,"小売販売業者への売渡し、消費者\n等への売渡し及び消費等",null,null,null,null,null,null,null,null,null,null,null,null,null,null,null,null,null,null,null,null,null,null,null,null,null,null,null,null,null,null,null,null,null,null,null,null,null,null,null,null,null,null,null,null,null,null,null,null,null,null,null,null,null,null,null,null,null,null,null,null,null,null,null,null,null,null,{"$f":"IF(提出用!BT37=\"\",\"\",提出用!BT37)","v":""}]
[]
[null,null,null,null,"合計　（①＋③－②）",null,null,null,null,null,null,null,null,null,null,null,null,null,null,null,null,null,null,null,null,null,null,null,null,null,null,null,null,null,null,null,null,null,null,null,null,null,null,null,null,null,null,null,null,null,null,null,null,null,null,null,null,null,null,null,null,null,null,null,null,null,null,null,null,null,null,{"$f":"IF(提出用!BT39=\"\",\"\",提出用!BT39)","v":0}]
[]
[null,"前月末在庫",null,null,null,null,null,null,null,null,null,null,null,null,null,null,null,null,null,null,null,null,null,null,null,null,null,null,null,null,null,null,null,null,null,null,null,null,null,null,null,null,null,null,null,null,null,null,null,null,null,null,null,null,null,null,null,null,null,null,null,null,null,null,null,null,null,null,null,null,null,{"$f":"IF(提出用!BT41=\"\",\"\",提出用!BT41)","v":0}]
[]
[null,"備考",null,null,{"$f":"IF(提出用!E43=\"\",\"\",提出用!E43)","v":""}]

{"sheet":"入力用","index":2,"n_rows":41,"n_cols":112,"rows_kept":41,"cut":false,"hidden":false,"merged":[[40,71,40,119],[38,11,38,59],[16,117,16,119],[13,90,14,119],[16,96,16,98],[16,99,16,101],[16,102,16,104],[16,105,16,107],[16,108,16,110],[16,111,16,113],[36,69,37,70],[38,69,39,70],[19,69,21,70],[40,69,41,70],[30,69,31,70],[34,71,34,119],[19,71,20,119],[3,111,4,119],[3,72,4,101],[3,102,4,110],[10,70,12,71],[10,96,11,101],[10,102,11,107],[10,114,11,119],[7,99,7,101],[10,108,11,113],[22,71,22,119],[24,71,24,119],[5,111,6,115],[5,116,6,119],[7,75,7,77],[7,78,7,80],[7,81,7,83],[7,84,7,86],[7,87,7,89],[7,90,7,92],[5,106,6,110],[7,93,7,95],[7,96,7,98],[5,102,6,105],[5,72,6,101],[16,114,16,116],[38,4,39,4],[38,1,39,3],[8,65,8,119],[36,71,36,119],[38,71,38,119],[10,72,11,77],[10,78,11,83],[10,84,11,89],[10,90,11,95],[15,90,15,119],[16,90,16,92],[16,93,16,95],[26,71,26,119],[28,71,28,119],[30,71,30,119],[32,71,32,119],[38,5,39,10],[40,5,41,10],[14,63,16,66],[13,67,16,69],[14,60,16,62],[14,42,16,59],[9,42,13,64],[40,11,40,59],[34,69,35,70],[19,66,20,67],[32,69,33,70],[19,68,20,68],[22,69,23,70],[24,69,25,70],[26,69,27,70],[28,69,29,70]]}
[]
[]
[]
[null,null,null,null,null,null,null,null,null,null,null,null,null,null,null,null,null,null,null,null,null,null,null,null,null,null,null,null,null,null,null,null,null,null,null,null,null,null,null,null,null,null,null,null,null,null,null,null,null,null,null,null,null,null,null,null,null,null,null,null,null,null,null,null,null,null,null,null,null,null,null,null,"事業者コード",null,null,null,null,null,null,null,null,null,null,null,null,null,null,null,null,null,null,null,null,null,null,null,null,null,null,null,null,null,"処理\n区分",null,null,null,null,null,null,null,null,"申告\n区分"]
[]
[null,null,null,null,null,null,null,null,null,null,null,null,null,null,null,null,null,null,null,null,null,null,null,null,null,null,null,null,null,null,null,null,null,null,null,null,null,null,null,null,null,null,null,null,null,null,null,null,null,null,null,null,null,null,null,null,null,null,null,null,null,null,null,null,null,null,null,null,null,null,null,null,{"$f":"IF(提出用!BU6=\"\",\"\",提出用!BU6)","v":""}]
[]
[]
[]
[]
[null,null,null,null,null,null,null,null,null,null,null,null,null,null,null,null,null,null,null,null,null,null,null,null,null,null,null,null,null,null,null,null,null,null,null,null,null,null,null,null,null,null,null,null,null,null,null,null,null,null,null,null,null,null,null,null,null,null,null,null,null,null,null,null,null,null,null,null,null,null,"ア",null,1,null,null,null,null,null,3]
[]
[]
[]
[null,null,null,null,null,null,null,null,null,null,null,null,null,null,null,null,null,null,null,null,null,null,null,null,null,null,null,null,null,null,null,null,null,null,null,null,null,null,null,null,null,null,{"$f":"IF(提出用!AQ15=\"\",\"\",提出用!AQ15)","v":""},null,null,null,null,null,null,null,null,null,null,null,null,null,null,null,null,null,null,null,null,{"$f":"IF(提出用!BL15=\"\",\"\",提出用!BL15)","v":""}]
[]
[]
[]
[]
[null,null,null,null,null,null,null,null,null,null,null,null,null,null,null,null,null,null,null,null,null,null,null,null,null,null,null,null,null,null,null,null,null,null,null,null,null,null,null,null,null,null,null,null,null,null,null,null,null,null,null,null,null,null,null,null,null,null,null,null,null,null,null,null,null,null,"イ",null,null,"01",null,{"$f":"IF(提出用!BT21=\"\",\"\",提出用!BT21)","v":""}]
[]
[]
[null,null,null,null,null,null,null,null,null,null,null,null,null,null,null,null,null,null,null,null,null,null,null,null,null,null,null,null,null,null,null,null,null,null,null,null,null,null,null,null,null,null,null,null,null,null,null,null,null,null,null,null,null,null,null,null,null,null,null,null,null,null,null,null,null,null,null,null,null,"02",null,{"$f":"IF(提出用!BT23=\"\",\"\",提出用!BT23)","v":""}]
[]
[null,null,null,null,null,null,null,null,null,null,null,null,null,null,null,null,null,null,null,null,null,null,null,null,null,null,null,null,null,null,null,null,null,null,null,null,null,null,null,null,null,null,null,null,null,null,null,null,null,null,null,null,null,null,null,null,null,null,null,null,null,null,null,null,null,null,null,null,null,"03",null,{"$f":"IF(提出用!BT25=\"\",\"\",提出用!BT25)","v":""}]
[]
[null,null,null,null,null,null,null,null,null,null,null,null,null,null,null,null,null,null,null,null,null,null,null,null,null,null,null,null,null,null,null,null,null,null,null,null,null,null,null,null,null,null,null,null,null,null,null,null,null,null,null,null,null,null,null,null,null,null,null,null,null,null,null,null,null,null,null,null,null,"04",null,{"$f":"IF(提出用!BT27=\"\",\"\",提出用!BT27)","v":0}]
[]
[null,null,null,null,null,null,null,null,null,null,null,null,null,null,null,null,null,null,null,null,null,null,null,null,null,null,null,null,null,null,null,null,null,null,null,null,null,null,null,null,null,null,null,null,null,null,null,null,null,null,null,null,null,null,null,null,null,null,null,null,null,null,null,null,null,null,null,null,null,"05",null,{"$f":"IF(提出用!BT29=\"\",\"\",提出用!BT29)","v":0}]
[]
[null,null,null,null,null,null,null,null,null,null,null,null,null,null,null,null,null,null,null,null,null,null,null,null,null,null,null,null,null,null,null,null,null,null,null,null,null,null,null,null,null,null,null,null,null,null,null,null,null,null,null,null,null,null,null,null,null,null,null,null,null,null,null,null,null,null,null,null,null,"06",null,{"$f":"IF(提出用!BT31=\"\",\"\",提出用!BT31)","v":0}]
[]
[null,null,null,null,null,null,null,null,null,null,null,null,null,null,null,null,null,null,null,null,null,null,null,null,null,null,null,null,null,null,null,null,null,null,null,null,null,null,null,null,null,null,null,null,null,null,null,null,null,null,null,null,null,null,null,null,null,null,null,null,null,null,null,null,null,null,null,null,null,"07",null,{"$f":"IF(提出用!BT33=\"\",\"\",提出用!BT33)","v":""}]
[]
[null,null,null,null,null,null,null,null,null,null,null,null,null,null,null,null,null,null,null,null,null,null,null,null,null,null,null,null,null,null,null,null,null,null,null,null,null,null,null,null,null,null,null,null,null,null,null,null,null,null,null,null,null,null,null,null,null,null,null,null,null,null,null,null,null,null,null,null,null,"08",null,{"$f":"IF(提出用!BT35=\"\",\"\",提出用!BT35)","v":0}]
[]
[null,null,null,null,null,null,null,null,null,null,null,null,null,null,null,null,null,null,null,null,null,null,null,null,null,null,null,null,null,null,null,null,null,null,null,null,null,null,null,null,null,null,null,null,null,null,null,null,null,null,null,null,null,null,null,null,null,null,null,null,null,null,null,null,null,null,null,null,null,"09",null,{"$f":"IF(提出用!BT37=\"\",\"\",提出用!BT37)","v":""}]
[]
[null,"イ",null,null,null,"12",null,null,null,null,null,null,null,null,null,null,null,null,null,null,null,null,null,null,null,null,null,null,null,null,null,null,null,null,null,null,null,null,null,null,null,null,null,null,null,null,null,null,null,null,null,null,null,null,null,null,null,null,null,null,null,null,null,null,null,null,null,null,null,"10",null,{"$f":"IF(提出用!BT39=\"\",\"\",提出用!BT39)","v":0}]
[]
[null,null,null,null,null,"13",null,null,null,null,null,null,null,null,null,null,null,null,null,null,null,null,null,null,null,null,null,null,null,null,null,null,null,null,null,null,null,null,null,null,null,null,null,null,null,null,null,null,null,null,null,null,null,null,null,null,null,null,null,null,null,null,null,null,null,null,null,null,null,"11",null,{"$f":"IF(提出用!BT41=\"\",\"\",提出用!BT41)","v":0}]

{"sheet":"提出用控","index":3,"n_rows":43,"n_cols":112,"rows_kept":43,"cut":false,"hidden":false,"merged":[[10,114,11,119],[36,60,37,70],[32,71,32,119],[34,71,34,119],[36,71,36,119],[24,71,24,119],[26,71,26,119],[28,71,28,119],[30,71,30,119],[30,60,31,70],[24,60,25,70],[26,60,27,70],[28,60,29,70],[10,72,11,77],[10,78,11,83],[10,84,11,89],[40,1,41,59],[42,1,42,3],[42,4,42,119],[38,71,38,119],[40,71,40,119],[32,1,39,3],[32,4,33,59],[36,4,37,59],[38,4,39,59],[34,4,35,5],[38,60,39,70],[40,60,41,70],[32,60,33,70],[34,60,35,70],[34,6,35,59],[10,90,11,95],[10,96,11,101],[5,102,6,105],[5,106,6,110],[7,96,7,98],[7,99,7,101],[10,102,11,107],[10,108,11,113],[3,70,12,71],[3,72,4,101],[7,75,7,77],[7,78,7,80],[7,81,7,83],[7,84,7,86],[7,87,7,89],[5,72,6,101],[8,72,9,83],[8,84,9,119],[7,90,7,92],[7,93,7,95],[3,111,4,119],[3,102,4,110],[5,111,6,115],[5,116,6,119],[4,1,4,46],[9,1,10,69],[11,1,11,69],[5,1,8,69],[24,4,25,59],[22,4,23,59],[19,1,21,59],[22,1,31,3],[30,4,31,59],[14,60,16,61],[18,1,18,59],[18,60,18,119],[19,60,21,70],[22,60,23,70],[20,71,20,119],[22,71,22,119],[28,4,29,59],[14,63,16,66],[14,67,16,69],[14,42,16,59],[14,23,16,41],[26,4,27,59]]}
[]
[]
[]
[null,null,null,null,null,null,null,null,null,null,null,null,null,null,null,null,null,null,null,null,null,null,null,null,null,null,null,null,null,null,null,null,null,null,null,null,null,null,null,null,null,null,null,null,null,null,null,null,null,null,null,null,null,null,null,null,null,null,null,null,null,null,null,null,null,null,null,null,null,null,"※処理事項",null,"事業者コード",null,null,null,null,null,null,null,null,null,null,null,null,null,null,null,null,null,null,null,null,null,null,null,null,null,null,null,null,null,"処理\n区分",null,null,null,null,null,null,null,null,"申告\n区分"]
[null,"　申告者の氏名又は名称"]
[null,{"$f":"IF(提出用!B6=\"\",\"\",提出用!B6)","v":""},null,null,null,null,null,null,null,null,null,null,null,null,null,null,null,null,null,null,null,null,null,null,null,null,null,null,null,null,null,null,null,null,null,null,null,null,null,null,null,null,null,null,null,null,null,null,null,null,null,null,null,null,null,null,null,null,null,null,null,null,null,null,null,null,null,null,null,null,null,null,{"$f":"IF(提出用!BU6=\"\",\"\",提出用!BU6)","v":""}]
[]
[]
[null,null,null,null,null,null,null,null,null,null,null,null,null,null,null,null,null,null,null,null,null,null,null,null,null,null,null,null,null,null,null,null,null,null,null,null,null,null,null,null,null,null,null,null,null,null,null,null,null,null,null,null,null,null,null,null,null,null,null,null,null,null,null,null,null,null,null,null,null,null,null,null,"予備",null,null,null,null,null,null,null,null,null,null,null,"申 告 年 月 日"]
[null,"　個人番号又は法人番号\n　　　　　　↓個人番号の記載に当たっては、左端を空欄とし、ここから記載してください。"]
[null,null,null,null,null,null,null,null,null,null,null,null,null,null,null,null,null,null,null,null,null,null,null,null,null,null,null,null,null,null,null,null,null,null,null,null,null,null,null,null,null,null,null,null,null,null,null,null,null,null,null,null,null,null,null,null,null,null,null,null,null,null,null,null,null,null,null,null,null,null,null,null,1,null,null,null,null,null,3]
[null,{"$f":"IF(提出用!B12=\"\",\"\",提出用!B12)","v":""}]
[]
[]
[null,null,null,null,null,null,null,null,null,null,null,null,null,null,null,null,null,null,null,null,null,null,null,"令和",null,null,null,null,null,null,null,null,null,null,null,null,null,null,null,null,null,null,{"$f":"IF(提出用!AQ15=\"\",\"\",提出用!AQ15)","v":""},null,null,null,null,null,null,null,null,null,null,null,null,null,null,null,null,null,"年",null,null,{"$f":"IF(提出用!BL15=\"\",\"\",提出用!BL15)","v":""},null,null,null,"月分"]
[]
[]
[]
[null,"摘要",null,null,null,null,null,null,null,null,null,null,null,null,null,null,null,null,null,null,null,null,null,null,null,null,null,null,null,null,null,null,null,null,null,null,null,null,null,null,null,null,null,null,null,null,null,null,null,null,null,null,null,null,null,null,null,null,null,null,"数量"]
[null,"前々月末在庫"]
[null,null,null,null,null,null,null,null,null,null,null,null,null,null,null,null,null,null,null,null,null,null,null,null,null,null,null,null,null,null,null,null,null,null,null,null,null,null,null,null,null,null,null,null,null,null,null,null,null,null,null,null,null,null,null,null,null,null,null,null,null,null,null,null,null,null,null,null,null,null,null,{"$f":"IF(提出用!BT21=\"\",\"\",提出用!BT21)","v":""}]
[]
[null,"受入れ",null,null,"輸入・製造",null,null,null,null,null,null,null,null,null,null,null,null,null,null,null,null,null,null,null,null,null,null,null,null,null,null,null,null,null,null,null,null,null,null,null,null,null,null,null,null,null,null,null,null,null,null,null,null,null,null,null,null,null,null,null,null,null,null,null,null,null,null,null,null,null,null,{"$f":"IF(提出用!BT23=\"\",\"\",提出用!BT23)","v":""}]
[]
[null,null,null,null,"卸売販売業者等からの買受け等",null,null,null,null,null,null,null,null,null,null,null,null,null,null,null,null,null,null,null,null,null,null,null,null,null,null,null,null,null,null,null,null,null,null,null,null,null,null,null,null,null,null,null,null,null,null,null,null,null,null,null,null,null,null,null,null,null,null,null,null,null,null,null,null,null,null,{"$f":"IF(提出用!BT25=\"\",\"\",提出用!BT25)","v":""}]
[]
[null,null,null,null,"返還",null,null,null,null,null,null,null,null,null,null,null,null,null,null,null,null,null,null,null,null,null,null,null,null,null,null,null,null,null,null,null,null,null,null,null,null,null,null,null,null,null,null,null,null,null,null,null,null,null,null,null,null,null,null,null,null,null,null,null,null,null,null,null,null,null,null,{"$f":"IF(提出用!BT27=\"\",\"\",提出用!BT27)","v":0}]
[]
[null,null,null,null,"その他",null,null,null,null,null,null,null,null,null,null,null,null,null,null,null,null,null,null,null,null,null,null,null,null,null,null,null,null,null,null,null,null,null,null,null,null,null,null,null,null,null,null,null,null,null,null,null,null,null,null,null,null,null,null,null,null,null,null,null,null,null,null,null,null,null,null,{"$f":"IF(提出用!BT29=\"\",\"\",提出用!BT29)","v":0}]
[]
[null,null,null,null,"合計",null,null,null,null,null,null,null,null,null,null,null,null,null,null,null,null,null,null,null,null,null,null,null,null,null,null,null,null,null,null,null,null,null,null,null,null,null,null,null,null,null,null,null,null,null,null,null,null,null,null,null,null,null,null,null,null,null,null,null,null,null,null,null,null,null,null,{"$f":"IF(提出用!BT31=\"\",\"\",提出用!BT31)","v":0}]
[]
[null,"払出し",null,null,"卸売販売業者等への売渡し等",null,null,null,null,null,null,null,null,null,null,null,null,null,null,null,null,null,null,null,null,null,null,null,null,null,null,null,null,null,null,null,null,null,null,null,null,null,null,null,null,null,null,null,null,null,null,null,null,null,null,null,null,null,null,null,null,null,null,null,null,null,null,null,null,null,null,{"$f":"IF(提出用!BT33=\"\",\"\",提出用!BT33)","v":""}]
[]
[null,null,null,null,null,null,"①のうち小売販売用",null,null,null,null,null,null,null,null,null,null,null,null,null,null,null,null,null,null,null,null,null,null,null,null,null,null,null,null,null,null,null,null,null,null,null,null,null,null,null,null,null,null,null,null,null,null,null,null,null,null,null,null,null,null,null,null,null,null,null,null,null,null,null,null,{"$f":"IF(提出用!BT35=\"\",\"\",提出用!BT35)","v":0}]
[]
[null,null,null,null,"小売販売業者への売渡し、消費者\n等への売渡し及び消費等",null,null,null,null,null,null,null,null,null,null,null,null,null,null,null,null,null,null,null,null,null,null,null,null,null,null,null,null,null,null,null,null,null,null,null,null,null,null,null,null,null,null,null,null,null,null,null,null,null,null,null,null,null,null,null,null,null,null,null,null,null,null,null,null,null,null,{"$f":"IF(提出用!BT37=\"\",\"\",提出用!BT37)","v":""}]
[]
[null,null,null,null,"合計　（①＋③－②）",null,null,null,null,null,null,null,null,null,null,null,null,null,null,null,null,null,null,null,null,null,null,null,null,null,null,null,null,null,null,null,null,null,null,null,null,null,null,null,null,null,null,null,null,null,null,null,null,null,null,null,null,null,null,null,null,null,null,null,null,null,null,null,null,null,null,{"$f":"IF(提出用!BT39=\"\",\"\",提出用!BT39)","v":0}]
[]
[null,"前月末在庫",null,null,null,null,null,null,null,null,null,null,null,null,null,null,null,null,null,null,null,null,null,null,null,null,null,null,null,null,null,null,null,null,null,null,null,null,null,null,null,null,null,null,null,null,null,null,null,null,null,null,null,null,null,null,null,null,null,null,null,null,null,null,null,null,null,null,null,null,null,{"$f":"IF(提出用!BT41=\"\",\"\",提出用!BT41)","v":0}]
[]
[null,"備考",null,null,{"$f":"IF(提出用!E43=\"\",\"\",提出用!E43)","v":""}]